fUST/lending_fUST_20250628
["ID","MTS","AMOUNT","RATE_DAILY","PERIOD"]
[368215204,1751062254076,-151.0,0.00021778,2]
[368215205,1751062254087,-438.381091,0.00021778,2]
[368215206,1751062254096,-438.381091,0.00021778,2]
[368215207,1751062254106,-12500.0,0.00021794,2]
[368215208,1751062254115,-3000.0,0.000218,2]
[368215209,1751062254125,-1694.51,0.000218,2]
[368215210,1751062254134,-151.0,0.00021802,2]
[368215211,1751062254144,-151.0,0.00021802,2]
[368215212,1751062254153,-151.0,0.00021802,2]
[368215213,1751062254164,-151.0,0.00021802,2]
[368215214,1751062254173,-12500.0,0.00021803,2]
[368215215,1751062254183,-3000.0,0.0002181,2]
[368215216,1751062254194,-151.0,0.0002181,2]
[368215217,1751062254204,-151.0,0.0002181,2]
[368215218,1751062254214,-12500.0,0.00021811,2]
[368215219,1751062254224,-3000.0,0.0002182,2]
[368215220,1751062254234,-151.0,0.0002182,2]
[368215221,1751062254244,-171.715867,0.0002182,2]
[368215222,1751062254254,-171.715867,0.0002182,2]
[368215223,1751062254264,-217.445559,0.0002182,2]
[368215224,1751062254273,-217.445559,0.0002182,2]
[368215225,1751062254285,-229.081397,0.0002182,2]
[368215226,1751062254295,-229.081397,0.0002182,2]
[368215227,1751062254304,-12500.0,0.0002182,2]
[368215228,1751062254314,-12500.0,0.00021829,2]
[368215229,1751062254324,-3000.0,0.0002183,2]
[368215230,1751062254334,-732.146926,0.0002183,2]
[368215231,1751062254344,-732.146926,0.0002183,2]
[368215232,1751062254354,-6008.08391899,0.00021831,6]
[368215233,1751062254365,-12500.0,0.00021838,2]
[368215234,1751062254374,-151.0,0.00021838,2]
[368215235,1751062254384,-392.968075,0.00021838,2]
[368215236,1751062254394,-392.968075,0.00021838,2]
[368215237,1751062254404,-155.218412,0.00021838,2]
[368215238,1751062254414,-155.218412,0.00021838,2]
[368215239,1751062254424,-257.62014,0.00021838,2]
[368215240,1751062254433,-257.62014,0.00021838,2]
[368215241,1751062254443,-3000.0,0.0002184,2]
[368215242,1751062254452,-12500.0,0.00021847,2]
[368215243,1751062254462,-3000.0,0.0002185,2]
[368215244,1751062254472,-151.0,0.0002185,2]
[368215245,1751062254482,-151.0,0.00021855,2]
[368215246,1751062254491,-265.892581,0.00021855,2]
[368215247,1751062254501,-211.760516,0.00021855,2]
[368215248,1751062254511,-211.760516,0.00021855,2]
[368215249,1751062254521,-12500.0,0.00021855,2]
[368215250,1751062254530,-3000.0,0.0002186,2]
[368215251,1751062254540,-4617.32193562,0.00021864,2]
[368215252,1751062254807,-3992.96604106,0.00021864,2]
[368215253,1751062255035,-220.02244178,0.00019178,2]
[368215254,1751062255045,-460.0,0.00019178,2]
[368215255,1751062255054,-154.75423572,0.00019178,2]
[368215256,1751062255210,-305.24576428,0.00019178,2]
[368215257,1751062255220,-460.0,0.00019178,2]
[368215258,1751062255229,-460.0,0.00019178,2]
[368215259,1751062255239,-460.0,0.00019178,2]
[368215260,1751062255248,-460.0,0.00019178,2]
[368215261,1751062255258,-460.0,0.00019452,2]
[368215262,1751062255267,-407.41784368,0.00019452,2]
[368215263,1751062255278,-52.58215632,0.00019452,2]
[368215264,1751062255287,-460.0,0.00019452,2]
[368215265,1751062255298,-460.0,0.00019452,2]
[368215266,1751062255307,-335.2087509,0.00019726,2]
[368215267,1751062255317,-460.0,0.00019726,2]
[368215268,1751062255326,-460.0,0.00019726,2]
[368215269,1751062255335,-460.0,0.00019726,2]
[368215270,1751062255344,-460.0,0.0002,2]
[368215271,1751062255354,-460.0,0.0002,2]
[368215272,1751062255363,-460.0,0.0002,2]
[368215273,1751062255373,-179.17,0.00020118,3]
[368215274,1751062255382,-460.0,0.00020273,2]
[368215275,1751062255391,-151.0,0.00020273,2]
[368215276,1751062255400,-460.0,0.00020273,2]
[368215277,1751062255410,-460.0,0.00020273,2]
[368215278,1751062255419,-151.0,0.00020273,2]
[368215279,1751062255429,-460.0,0.00020547,2]
[368215280,1751062255438,-460.0,0.00020547,2]
[368215281,1751062255448,-151.0,0.00020547,2]
[368215282,1751062255457,-317.56,0.00020821,2]
[368215283,1751062255467,-460.0,0.00020821,2]
[368215284,1751062255476,-460.0,0.00021095,2]
[368215285,1751062255486,-159.3,0.00021369,2]
[368215286,1751062255495,-358.34,0.00021488,3]
[368215287,1751062255505,-3889.71202332,0.00021864,2]
[368215288,1751062255515,-3000.0,0.0002187,2]
[368215289,1751062255524,-235.802677,0.0002187,2]
[368215290,1751062255533,-235.802677,0.0002187,2]
[368215291,1751062255543,-1494.112987,0.0002187,2]
[368215292,1751062255553,-1494.112987,0.0002187,2]
[368215293,1751062255562,-151.0,0.00021873,2]
[368215294,1751062255572,-295.805412,0.00021873,2]
[368215295,1751062255581,-279.13278,0.00021873,2]
[368215296,1751062255591,-279.13278,0.00021873,2]
[368215297,1751062255600,-367.454944,0.00021873,2]
[368215298,1751062255609,-367.454944,0.00021873,2]
[368215299,1751062255619,-12500.0,0.00021873,2]
[368215300,1751062255628,-1000.0,0.0002188,2]
[368215301,1751062255637,-3000.0,0.0002188,2]
[368215302,1751062255646,-12500.0,0.00021882,2]
[368215303,1751062255655,-151.0,0.00021882,2]
[368215304,1751062255664,-32.54195033,0.00021882,2]
[368215306,1751062855333,477.332587,0.00013699,2]
[368215325,1751063133620,-1200.0,0.00018426,2]
[368215326,1751063133646,-154.80024324,0.00018427,2]
[368215328,1751063157078,-164.91663402,0.00018327,2]
[368215329,1751063157099,-1045.19975676,0.00018427,2]
[368215330,1751063157118,-300.0,0.00018427,2]
[368215331,1751063157139,-300.0,0.00018427,2]
[368215332,1751063157160,-66.41599618,0.00018427,2]
[368215334,1751063242127,-233.58400382,0.00018427,2]
[368215335,1751063242148,-300.0,0.00018427,2]
[368215336,1751063242170,-226.31261006,0.00018428,2]
[368215337,1751063248182,-214.36879643,0.00018428,2]
[368215339,1751063266562,14489.48052652,0.00026072,120]
[368215354,1751063319147,150.999999,0.00026072,120]
[368215385,1751063432795,-300.0,0.00018125,2]
[368215387,1751063432805,-1200.0,0.00018125,2]
[368215389,1751063432814,-4949.2627272,0.00018126,2]
[368215394,1751063432825,-473.87849468,0.00018126,2]
[368215397,1751063432837,-6133.78834735,0.00018126,2]
[368215402,1751063432877,-13343.07043077,0.00018126,2]
[368215404,1751063432886,-1811.13135832,0.000189,2]
[368215406,1751063432896,-500.42188877,0.00019077,2]
[368215409,1751063432906,-741.01909549,0.00019078,2]
[368215412,1751063432915,-537.55,0.00019168,3]
[368215414,1751063432924,-220.86,0.00019168,3]
[368215416,1751063432934,-662.61,0.00019168,3]
[368215418,1751063432943,-175.23,0.00019168,3]
[368215419,1751063432952,-500.0,0.00019173,2]
[368215421,1751063432961,-500.0,0.00019173,2]
[368215423,1751063432970,-500.0,0.00019173,2]
[368215424,1751063432979,-500.0,0.00019173,2]
[368215427,1751063432988,-500.0,0.00019173,2]
[368215429,1751063432998,-500.0,0.00019173,2]
[368215430,1751063433007,-500.0,0.00019173,2]
[368215431,1751063433017,-500.0,0.00019173,2]
[368215432,1751063433027,-500.0,0.00019173,2]
[368215433,1751063433037,-500.0,0.00019173,2]
[368215434,1751063433047,-500.0,0.00019173,2]
[368215435,1751063433057,-204.50798009,0.00019173,2]
[368215436,1751063433066,-500.0,0.00019173,2]
[368215437,1751063433076,-430.74412669,0.00019173,2]
[368215438,1751063433086,-231.43256101,0.00019173,2]
[368215439,1751063433095,-500.0,0.00019173,2]
[368215440,1751063433105,-500.0,0.00019173,2]
[368215441,1751063433114,-500.0,0.00019173,2]
[368215442,1751063433124,-500.0,0.00019173,2]
[368215443,1751063433133,-377.86166272,0.00019173,2]
[368215444,1751063433143,-500.0,0.00019173,2]
[368215445,1751063433152,-500.0,0.00019173,2]
[368215446,1751063433162,-500.0,0.00019173,2]
[368215447,1751063433171,-500.0,0.00019173,2]
[368215448,1751063433181,-500.0,0.00019173,2]
[368215449,1751063433191,-500.0,0.00019173,2]
[368215450,1751063433201,-500.0,0.00019173,2]
[368215451,1751063433211,-9812.85181933,0.00019173,2]
[368215452,1751063433221,-500.0,0.00019177,2]
[368215453,1751063433231,-500.0,0.00019177,2]
[368215454,1751063433241,-266.22133949,0.00019177,2]
[368215455,1751063433250,-500.0,0.00019177,2]
[368215456,1751063433260,-370.88719345,0.00019177,2]
[368215457,1751063433270,-500.0,0.00019177,2]
[368215458,1751063433280,-500.0,0.00019177,2]
[368215459,1751063433290,-500.0,0.00019177,2]
[368215460,1751063433300,-227.12174461,0.00019177,2]
[368215461,1751063433310,-500.0,0.00019177,2]
[368215462,1751063433320,-500.0,0.00019177,2]
[368215463,1751063433330,-500.0,0.00019177,2]
[368215464,1751063433339,-164.04437816,0.00019177,2]
[368215465,1751063433349,-500.0,0.00019177,2]
[368215466,1751063433359,-500.0,0.00019177,2]
[368215467,1751063433368,-500.0,0.00019177,2]
[368215468,1751063433377,-434.60891861,0.00019177,2]
[368215469,1751063433388,-431.72354904,0.00019177,2]
[368215470,1751063433398,-500.0,0.00019177,2]
[368215471,1751063433407,-622.04627888,0.00019177,2]
[368215472,1751063433417,-500.0,0.00019177,2]
[368215473,1751063433427,-500.0,0.00019177,2]
[368215474,1751063433437,-335.02441725,0.00019177,2]
[368215475,1751063433446,-415.41701934,0.00019177,2]
[368215476,1751063433455,-500.0,0.00019177,2]
[368215477,1751063433465,-500.0,0.00019177,2]
[368215478,1751063433474,-500.0,0.00019177,2]
[368215479,1751063433484,-500.0,0.00019177,2]
[368215480,1751063433494,-299.04252712,0.00019177,2]
[368215481,1751063433504,-500.0,0.00019177,2]
[368215482,1751063433513,-336.34793949,0.00019177,2]
[368215483,1751063433524,-460.0,0.00019178,2]
[368215484,1751063433534,-460.0,0.00019178,2]
[368215485,1751063433545,-460.0,0.00019178,2]
[368215486,1751063433555,-460.0,0.00019178,2]
[368215487,1751063433564,-460.0,0.00019178,2]
[368215488,1751063433574,-460.0,0.00019178,2]
[368215489,1751063433584,-460.0,0.00019178,2]
[368215490,1751063433593,-460.0,0.00019178,2]
[368215491,1751063433603,-460.0,0.00019178,2]
[368215492,1751063433612,-464.86961979,0.00019178,2]
[368215493,1751063433622,-460.0,0.00019178,2]
[368215494,1751063433631,-460.0,0.00019178,2]
[368215495,1751063433641,-460.0,0.00019178,2]
[368215496,1751063433650,-165.23415158,0.00019178,2]
[368215497,1751063433664,-293.15651082,0.00019178,2]
[368215498,1751063433676,-146.40848918,0.00019178,2]
[368215545,1751063438804,-313.59151082,0.00019178,2]
[368215547,1751063438814,-443.19302072,0.00019178,2]
[368215549,1751063438823,-460.0,0.00019178,2]
[368215551,1751063438833,-460.0,0.00019178,2]
[368215553,1751063438842,-460.0,0.00019178,2]
[368215555,1751063438852,-398.10576102,0.00019178,2]
[368215557,1751063438861,-460.0,0.00019178,2]
[368215559,1751063438871,-460.0,0.00019178,2]
[368215561,1751063438880,-460.0,0.00019178,2]
[368215563,1751063438889,-114.54930802,0.00019178,2]
[368215565,1751063438901,-345.45069198,0.00019178,2]
[368215567,1751063438911,-460.0,0.00019178,2]
[368215570,1751063438921,-460.0,0.00019178,2]
[368215572,1751063438930,-460.0,0.00019178,2]
[368215574,1751063438940,-460.0,0.00019178,2]
[368215576,1751063438949,-445.24797398,0.00019178,2]
[368215578,1751063438958,-460.0,0.00019178,2]
[368215580,1751063438967,-460.0,0.00019178,2]
[368215582,1751063438976,-460.0,0.00019178,2]
[368215584,1751063438985,-460.0,0.00019178,2]
[368215586,1751063438994,-53.96562449,0.00019178,2]
[368215590,1751063439056,-406.03437551,0.00019178,2]
[368215591,1751063439066,-430.0,0.00019178,2]
[368215592,1751063439075,-460.0,0.00019178,2]
[368215594,1751063439085,-460.0,0.00019178,2]
[368215595,1751063439095,-460.0,0.00019178,2]
[368215597,1751063439104,-464.94520971,0.00019178,2]
[368215599,1751063439113,-460.0,0.00019178,2]
[368215600,1751063439123,-460.0,0.00019178,2]
[368215601,1751063439132,-460.0,0.00019178,2]
[368215602,1751063439142,-460.0,0.00019178,2]
[368215603,1751063439152,-460.0,0.00019178,2]
[368215604,1751063439161,-460.0,0.00019178,2]
[368215605,1751063439171,-460.0,0.00019178,2]
[368215606,1751063439182,-460.0,0.00019178,2]
[368215607,1751063439191,-460.0,0.00019178,2]
[368215608,1751063439201,-460.0,0.00019178,2]
[368215609,1751063439211,-460.0,0.00019178,2]
[368215610,1751063439220,-460.0,0.00019178,2]
[368215611,1751063439230,-430.65675599,0.00019178,2]
[368215612,1751063439240,-460.0,0.00019178,2]
[368215613,1751063439249,-460.0,0.00019178,2]
[368215614,1751063439259,-460.0,0.00019178,2]
[368215615,1751063439271,-460.0,0.00019178,2]
[368215616,1751063439280,-460.0,0.00019178,2]
[368215617,1751063439290,-460.0,0.00019178,2]
[368215618,1751063439299,-460.0,0.00019178,2]
[368215619,1751063439308,-460.0,0.00019178,2]
[368215620,1751063439319,-583.9813958,0.00019178,2]
[368215621,1751063439328,-460.0,0.00019178,2]
[368215622,1751063439338,-460.0,0.00019178,2]
[368215623,1751063439348,-460.0,0.00019178,2]
[368215624,1751063439358,-460.0,0.00019178,2]
[368215625,1751063439367,-460.0,0.00019178,2]
[368215626,1751063439376,-460.0,0.00019178,2]
[368215627,1751063439387,-460.0,0.00019178,2]
[368215628,1751063439396,-460.0,0.00019178,2]
[368215629,1751063439405,-460.0,0.00019178,2]
[368215630,1751063439415,-460.0,0.00019178,2]
[368215631,1751063439424,-460.0,0.00019178,2]
[368215632,1751063439434,-460.0,0.00019178,2]
[368215633,1751063439443,-460.0,0.00019178,2]
[368215634,1751063439453,-460.0,0.00019178,2]
[368215635,1751063439463,-460.0,0.00019178,2]
[368215636,1751063439472,-460.0,0.00019178,2]
[368215637,1751063439482,-460.0,0.00019178,2]
[368215638,1751063439491,-460.0,0.00019178,2]
[368215639,1751063439500,-460.0,0.00019178,2]
[368215640,1751063439509,-460.0,0.00019178,2]
[368215641,1751063439519,-460.0,0.00019178,2]
[368215642,1751063439530,-460.0,0.00019178,2]
[368215643,1751063439540,-460.0,0.00019178,2]
[368215644,1751063439550,-374.3433194,0.00019178,2]
[368215645,1751063439559,-460.0,0.00019178,2]
[368215646,1751063439569,-460.0,0.00019178,2]
[368215647,1751063439578,-460.0,0.00019178,2]
[368215648,1751063439587,-460.0,0.00019178,2]
[368215649,1751063439597,-607.35,0.00019178,2]
[368215650,1751063439607,-460.0,0.00019178,2]
[368215651,1751063439617,-460.0,0.00019178,2]
[368215652,1751063439626,-460.0,0.00019178,2]
[368215653,1751063439636,-460.0,0.00019178,2]
[368215654,1751063439646,-460.0,0.00019178,2]
[368215655,1751063439655,-159.7894581,0.00019178,2]
[368215656,1751063439665,-999.05,0.00019178,2]
[368215657,1751063439675,-596.16203107,0.00019178,2]
[368215658,1751063439686,-460.0,0.00019178,2]
[368215659,1751063439697,-460.0,0.00019178,2]
[368215660,1751063439706,-460.0,0.00019178,2]
[368215661,1751063439715,-460.0,0.00019178,2]
[368215662,1751063439725,-460.0,0.00019178,2]
[368215663,1751063439735,-460.0,0.00019178,2]
[368215664,1751063439745,-460.0,0.00019178,2]
[368215665,1751063439754,-460.0,0.00019178,2]
[368215666,1751063439765,-460.0,0.00019178,2]
[368215667,1751063439774,-460.0,0.00019178,2]
[368215668,1751063439784,-239.59986534,0.00019178,2]
[368215669,1751063439794,-460.0,0.00019178,2]
[368215670,1751063439803,-460.0,0.00019178,2]
[368215671,1751063439812,-460.0,0.00019178,2]
[368215672,1751063439822,-460.0,0.00019178,2]
[368215673,1751063439831,-522.54799581,0.00019178,2]
[368215674,1751063439841,-460.0,0.00019178,2]
[368215675,1751063439852,-460.0,0.00019178,2]
[368215676,1751063439862,-460.0,0.00019178,2]
[368215677,1751063439872,-460.0,0.00019178,2]
[368215678,1751063439881,-460.0,0.00019178,2]
[368215679,1751063439891,-460.0,0.00019178,2]
[368215680,1751063439900,-460.0,0.00019178,2]
[368215681,1751063439912,-460.0,0.00019178,2]
[368215682,1751063439922,-460.0,0.00019178,2]
[368215683,1751063439933,-460.0,0.00019178,2]
[368215684,1751063439944,-460.0,0.00019178,2]
[368215685,1751063439956,-153.23896903,0.00019178,2]
[368215686,1751063439966,-460.0,0.00019178,2]
[368215687,1751063439977,-460.0,0.00019178,2]
[368215688,1751063439988,-460.0,0.00019178,2]
[368215689,1751063439998,-460.0,0.00019178,2]
[368215690,1751063440008,-460.0,0.00019178,2]
[368215691,1751063440017,-460.0,0.00019178,2]
[368215692,1751063440026,-460.0,0.00019178,2]
[368215693,1751063440035,-460.0,0.00019178,2]
[368215694,1751063440045,-460.0,0.00019178,2]
[368215695,1751063440054,-460.0,0.00019178,2]
[368215696,1751063440064,-460.0,0.00019178,2]
[368215697,1751063440074,-363.55677075,0.00019178,2]
[368215698,1751063440084,-460.0,0.00019178,2]
[368215699,1751063440094,-460.0,0.00019178,2]
[368215700,1751063440103,-460.0,0.00019178,2]
[368215701,1751063440112,-460.0,0.00019178,2]
[368215702,1751063440122,-460.0,0.00019178,2]
[368215703,1751063440131,-460.0,0.00019178,2]
[368215704,1751063440142,-460.0,0.00019178,2]
[368215705,1751063440152,-460.0,0.00019178,2]
[368215706,1751063440161,-460.0,0.00019178,2]
[368215707,1751063440171,-460.0,0.00019178,2]
[368215708,1751063440181,-460.0,0.00019178,2]
[368215709,1751063440190,-460.0,0.00019178,2]
[368215710,1751063440199,-460.0,0.00019178,2]
[368215711,1751063440209,-460.0,0.00019178,2]
[368215712,1751063440218,-460.0,0.00019178,2]
[368215713,1751063440227,-460.0,0.00019178,2]
[368215714,1751063440237,-460.0,0.00019178,2]
[368215715,1751063440246,-460.0,0.00019178,2]
[368215716,1751063440256,-460.0,0.00019178,2]
[368215717,1751063440265,-900.26,0.00019178,2]
[368215718,1751063440275,-460.0,0.00019178,2]
[368215719,1751063440284,-460.0,0.00019178,2]
[368215720,1751063440293,-460.0,0.00019178,2]
[368215721,1751063440303,-460.0,0.00019178,2]
[368215722,1751063440312,-460.0,0.00019178,2]
[368215723,1751063440322,-460.0,0.00019178,2]
[368215724,1751063440330,-460.0,0.00019178,2]
[368215725,1751063440340,-460.0,0.00019178,2]
[368215726,1751063440349,-460.0,0.00019178,2]
[368215727,1751063440358,-460.0,0.00019178,2]
[368215728,1751063440368,-460.0,0.00019178,2]
[368215729,1751063440378,-460.0,0.00019178,2]
[368215730,1751063440387,-460.0,0.00019178,2]
[368215731,1751063440396,-460.0,0.00019178,2]
[368215732,1751063440405,-460.0,0.00019178,2]
[368215733,1751063440414,-460.0,0.00019178,2]
[368215734,1751063440424,-460.0,0.00019178,2]
[368215735,1751063440434,-460.0,0.00019178,2]
[368215736,1751063440443,-460.0,0.00019178,2]
[368215737,1751063440452,-182.42,0.00019178,2]
[368215738,1751063440461,-460.0,0.00019178,2]
[368215739,1751063440471,-460.0,0.00019178,2]
[368215740,1751063440480,-460.0,0.00019178,2]
[368215741,1751063440489,-460.0,0.00019178,2]
[368215742,1751063440499,-500.0,0.00019178,2]
[368215743,1751063440508,-460.0,0.00019178,2]
[368215744,1751063440518,-410.0,0.00019178,2]
[368215746,1751063440528,-460.0,0.00019178,2]
[368215747,1751063440538,-460.0,0.00019178,2]
[368215749,1751063440548,-460.0,0.00019178,2]
[368215751,1751063440557,-169.94755432,0.00019178,2]
[368215753,1751063440566,-460.0,0.00019178,2]
[368215754,1751063440576,-460.0,0.00019178,2]
[368215755,1751063440586,-460.0,0.00019178,2]
[368215756,1751063440596,-460.0,0.00019178,2]
[368215757,1751063440606,-460.0,0.00019178,2]
[368215758,1751063440615,-460.0,0.00019178,2]
[368215759,1751063440624,-460.0,0.00019178,2]
[368215760,1751063440634,-460.0,0.00019178,2]
[368215762,1751063440643,-460.0,0.00019178,2]
[368215764,1751063440653,-460.0,0.00019178,2]
[368215766,1751063440662,-460.0,0.00019178,2]
[368215768,1751063440672,-460.0,0.00019178,2]
[368215770,1751063440682,-460.0,0.00019178,2]
[368215772,1751063440693,-436.12665083,0.00019178,2]
[368215774,1751063440703,-460.0,0.00019178,2]
[368215776,1751063440712,-460.0,0.00019178,2]
[368215778,1751063440722,-540.41,0.00019178,2]
[368215780,1751063440731,-460.0,0.00019178,2]
[368215782,1751063440742,-460.0,0.00019178,2]
[368215783,1751063440753,-460.0,0.00019178,2]
[368215786,1751063440764,-460.0,0.00019178,2]
[368215788,1751063440774,-460.0,0.00019178,2]
[368215789,1751063440783,-460.0,0.00019178,2]
[368215792,1751063440794,-460.0,0.00019178,2]
[368215794,1751063440804,-460.0,0.00019178,2]
[368215796,1751063440814,-460.0,0.00019178,2]
[368215798,1751063440824,-460.0,0.00019178,2]
[368215800,1751063440834,-460.0,0.00019178,2]
[368215802,1751063440843,-460.0,0.00019178,2]
[368215804,1751063440852,-404.14562178,0.00019178,2]
[368215805,1751063440862,-460.0,0.00019178,2]
[368215807,1751063440871,-460.0,0.00019178,2]
[368215810,1751063440880,-460.0,0.00019178,2]
[368215811,1751063440890,-460.0,0.00019178,2]
[368215814,1751063440899,-460.0,0.00019178,2]
[368215816,1751063440909,-460.0,0.00019178,2]
[368215818,1751063440918,-460.0,0.00019178,2]
[368215819,1751063440927,-460.0,0.00019178,2]
[368215822,1751063440937,-460.0,0.00019178,2]
[368215823,1751063440947,-460.0,0.00019178,2]
[368215841,1751063441102,-496.15206338,0.00019178,2]
[368215843,1751063441112,-460.0,0.00019178,2]
[368215845,1751063441121,-460.0,0.00019178,2]
[368215847,1751063441130,-460.0,0.00019178,2]
[368215849,1751063441139,-460.0,0.00019178,2]
[368215851,1751063441149,-460.0,0.00019178,2]
[368215853,1751063441158,-460.0,0.00019178,2]
[368215855,1751063441167,-460.0,0.00019178,2]
[368215857,1751063441178,-871.69,0.00019178,2]
[368215859,1751063441187,-460.0,0.00019178,2]
[368215861,1751063441197,-448.53033588,0.00019178,2]
[368215863,1751063441210,-503.7,0.00019178,2]
[368215865,1751063441219,-460.0,0.00019178,2]
[368215867,1751063441228,-714.05,0.00019178,2]
[368215869,1751063441237,-868.19,0.00019178,2]
[368215871,1751063441247,-460.0,0.00019178,2]
[368215873,1751063441256,-1111.27,0.00019178,2]
[368215875,1751063441265,-460.0,0.00019178,2]
[368215877,1751063441275,-460.0,0.00019178,2]
[368215879,1751063441284,-480.00000012,0.00019178,2]
[368215881,1751063441293,-460.0,0.00019178,2]
[368215883,1751063441302,-653.02,0.00019178,2]
[368215885,1751063441312,-828.56,0.00019178,2]
[368215887,1751063441321,-548.24151938,0.00019178,2]
[368215890,1751063441334,-460.0,0.00019178,2]
[368215892,1751063441343,-627.83,0.00019178,2]
[368215894,1751063441353,-460.0,0.00019178,2]
[368215896,1751063441363,-1734.59,0.00019178,2]
[368215898,1751063441374,-460.0,0.00019178,2]
[368215900,1751063441383,-460.0,0.00019178,2]
[368215902,1751063441393,-460.0,0.00019178,2]
[368215904,1751063441402,-460.0,0.00019178,2]
[368215906,1751063441411,-460.0,0.00019178,2]
[368215908,1751063441420,-460.0,0.00019178,2]
[368215910,1751063441430,-674.57,0.00019178,2]
[368215912,1751063441440,-460.0,0.00019178,2]
[368215914,1751063441449,-673.33,0.00019178,2]
[368215916,1751063441458,-460.0,0.00019178,2]
[368215918,1751063441467,-3325.53,0.00019178,2]
[368215920,1751063441476,-2036.27,0.00019178,2]
[368215922,1751063441486,-460.0,0.00019178,2]
[368215924,1751063441495,-309.72760043,0.00019178,2]
[368215926,1751063441504,-3039.98,0.00019178,2]
[368215928,1751063441515,-464.68311241,0.00019178,2]
[368215930,1751063441524,-460.0,0.00019178,2]
[368215932,1751063441534,-460.0,0.00019178,2]
[368215934,1751063441544,-460.0,0.00019178,2]
[368215936,1751063441553,-460.0,0.00019178,2]
[368215938,1751063441562,-746.56,0.00019178,2]
[368215940,1751063441571,-3571.78,0.00019178,2]
[368215942,1751063441580,-460.0,0.00019178,2]
[368215944,1751063441589,-711.12,0.00019178,2]
[368215946,1751063441599,-460.0,0.00019178,2]
[368215948,1751063441608,-460.0,0.00019178,2]
[368215950,1751063441618,-460.0,0.00019178,2]
[368215952,1751063441627,-390.0,0.00019178,2]
[368215954,1751063441637,-542.69,0.00019178,2]
[368215956,1751063441646,-461.45673651,0.00019178,2]
[368215958,1751063441655,-463.03041247,0.00019178,2]
[368215960,1751063441665,-460.0,0.00019178,2]
[368215962,1751063441674,-460.0,0.00019178,2]
[368215964,1751063441683,-746.6,0.00019178,2]
[368215966,1751063441693,-460.0,0.00019178,2]
[368215967,1751063441706,-460.0,0.00019178,2]
[368215969,1751063441716,-1211.5,0.00019178,2]
[368215970,1751063441725,-460.0,0.00019178,2]
[368215971,1751063441734,-460.0,0.00019178,2]
[368215972,1751063441743,-460.0,0.00019178,2]
[368215973,1751063441752,-460.0,0.00019178,2]
[368215974,1751063441762,-460.0,0.00019178,2]
[368215975,1751063441771,-460.0,0.00019178,2]
[368215976,1751063441780,-460.0,0.00019178,2]
[368215977,1751063441790,-1983.87,0.00019178,2]
[368215978,1751063441799,-460.0,0.00019178,2]
[368215979,1751063441808,-2057.65,0.00019178,2]
[368215980,1751063441817,-460.0,0.00019178,2]
[368215981,1751063441826,-460.0,0.00019178,2]
[368215982,1751063441835,-460.0,0.00019178,2]
[368215983,1751063441844,-592.7,0.00019178,2]
[368215984,1751063441852,-2270.27,0.00019178,2]